bitfinex-derivatives/quotes_SOLF0:USTF0_20250529
["timestamp","ask_amount","ask_price","bid_price","bid_amount"]
[1748523244330,5.8111,172.02,172.01,0.03895416]
[1748523250434,5.811,172.03,172.01,0.03895416]
[1748523253141,5.8112,172.02,172.01,0.03895416]
[1748523275443,8.24063346,172.03,172.01,0.03895416]
[1748523275648,5.811,172.03,172.01,0.03895416]
[1748523275844,8.24157268,172.03,172.01,0.03895416]
[1748523276444,5.8112,172.02,172.01,0.03895416]
[1748523276650,9.05518873,172.02,172.01,0.03895416]
[1748523276850,11.48761612,172.02,172.01,0.03895416]
[1748523277550,8.24403152,172.02,172.01,0.03895416]
[1748523277748,11.48802025,172.02,172.01,0.03895416]
[1748523278252,11.48807021,172.02,172.01,0.03895416]
[1748523278451,11.48806449,172.02,172.01,0.03895416]
[1748523279459,9.05518873,172.02,172.01,0.03895416]
[1748523279643,11.48869018,172.02,172.01,0.03895416]
[1748523280349,11.4886443,172.02,172.01,0.03895416]
[1748523281254,11.48929142,172.02,172.01,0.03895416]
[1748523281648,11.48928721,172.02,172.01,0.03895416]
[1748523281849,9.05518873,172.02,172.01,0.03895416]
[1748523282050,11.49010678,172.02,172.01,0.03895416]
[1748523283053,11.49111579,172.02,172.01,0.03895416]
[1748523283651,11.4910721,172.02,172.01,0.03895416]
[1748523283850,11.49260149,172.02,172.01,0.03895416]
[1748523285257,11.49484351,172.02,172.01,0.03895416]
[1748523285452,9.05518873,172.02,172.01,0.03895416]
[1748523285653,11.49487084,172.02,172.01,0.03895416]
[1748523287256,11.49606594,172.02,172.01,0.03895416]
[1748523287458,8.25224358,172.02,172.01,0.03895416]
[1748523287659,11.49623231,172.02,172.01,0.03895416]
[1748523288054,11.49593172,172.02,172.01,0.03895416]
[1748523288455,9.05518873,172.02,172.01,0.03895416]
[1748523288651,11.49603262,172.02,172.01,0.03895416]
[1748523289358,11.49633211,172.02,172.01,0.03895416]
[1748523290563,8.25231458,172.02,172.01,0.03895416]
[1748523290865,11.49630331,172.02,172.01,0.03895416]
[1748523291366,11.4958352,172.02,172.01,0.03895416]
[1748523291864,5.68452635,172.02,172.01,0.03895416]
[1748523292068,5.68452546,172.02,172.01,0.03895416]
[1748523293261,5.6845478,172.02,172.01,0.03895416]
[1748523293464,2.44055907,172.02,172.01,0.03895416]
[1748523293664,5.8112,172.02,172.01,0.03895416]
[1748523293864,8.25159114,172.02,172.01,0.03895416]
[1748523294175,8.25158848,172.02,172.01,0.03895416]
[1748523295465,8.25107906,172.02,172.01,0.03895416]
[1748523296967,8.25136149,172.02,172.01,0.03895416]
[1748523299468,8.25159252,172.02,172.01,0.03895416]
[1748523299673,8.25172317,172.02,172.01,0.03895416]
[1748523300574,8.25231359,172.02,172.01,0.03895416]
[1748523300970,5.8112,172.02,172.01,0.03895416]
[1748523301165,8.25229708,172.02,172.01,0.03895416]
[1748523302072,8.2527866,172.02,172.01,0.03895416]
[1748523302480,8.25289743,172.02,172.01,0.03895416]
[1748523302871,2.44169743,172.02,172.01,0.03895416]
[1748523303267,2.44236379,172.02,172.01,0.03895416]
[1748523304079,8.25356379,172.02,172.01,0.03895416]
[1748523304779,5.811,172.03,172.01,0.03895416]
[1748523305076,2.44261433,172.02,172.01,0.03895416]
[1748523305279,5.811,172.03,172.01,0.03895416]
[1748523305478,2.4425237,172.02,172.01,5.85045416]
[1748523306379,2.4425237,172.02,172.01,0.03895416]
[1748523306776,2.44283295,172.02,172.01,0.03895416]
[1748523306976,2.44269206,172.02,172.01,0.03895416]
[1748523307878,2.442444,172.02,172.01,0.03895416]
[1748523308272,5.8109,172.03,172.01,0.03895416]
[1748523308476,2.44223514,172.02,172.01,0.03895416]
[1748523308678,5.8109,172.03,172.01,0.03895416]
[1748523308876,2.44220554,172.02,172.01,5.85045416]
[1748523310082,2.44182759,172.02,172.01,5.85045416]
[1748523310476,5.8109,172.03,172.01,5.85045416]
[1748523310675,2.44172761,172.02,172.01,5.85045416]
[1748523310979,2.44157207,172.02,172.01,0.03895416]
[1748523311577,2.44172432,172.02,172.01,0.03895416]
[1748523311773,2.44172538,172.02,172.01,0.03895416]
[1748523312374,8.25292538,172.02,172.01,0.03895416]
[1748523313782,8.25197434,172.02,172.01,0.03895416]
[1748523314886,11.49566459,172.02,172.01,0.03895416]
[1748523315285,8.25167586,172.02,172.01,0.03895416]
[1748523316080,8.25137056,172.02,172.01,0.03895416]
[1748523316281,3.24398873,172.03,172.01,0.03895416]
[1748523316475,2.44016184,172.02,172.01,0.03895416]
[1748523316684,2.44025558,172.02,172.01,0.03895416]
[1748523317787,42.86195374,172.05,172.01,0.03895416]
[1748523317988,2.44028788,172.04,172.01,0.03895416]
[1748523318189,42.86195374,172.05,172.01,0.03895416]
[1748523318683,2.44025092,172.04,172.01,0.03895416]
[1748523318883,8.25125092,172.03,172.01,0.03895416]
[1748523319082,2.44025092,172.02,172.01,0.03895416]
[1748523319688,2.44029738,172.02,172.01,0.03895416]
[1748523319882,8.25147916,172.02,172.01,0.03895416]
[1748523320190,2.44027916,172.02,172.01,0.03895416]
[1748523321286,2.44001062,172.02,172.01,0.03895416]
[1748523322284,5.8111,172.03,172.01,0.03895416]
[1748523322480,2.43997301,172.02,172.01,0.03895416]
[1748523322679,2.4399461,172.02,172.01,0.03895416]
[1748523323082,8.25115592,172.02,172.01,0.03895416]
[1748523323389,8.25109273,172.02,172.01,0.03895416]
[1748523324884,8.25107051,172.02,172.01,0.03895416]
[1748523325090,8.25112039,172.02,172.01,0.03895416]
[1748523326089,5.8112,172.02,172.01,0.03895416]
[1748523326282,8.25110496,172.02,172.01,0.03895416]
[1748523326689,8.2515515,172.02,172.01,0.03895416]
[1748523326889,8.25155477,172.02,172.01,0.03895416]
[1748523327793,8.25172341,172.02,172.01,0.03895416]
[1748523328290,5.8112,172.02,172.01,0.03895416]
[1748523328690,8.25217827,172.02,172.01,0.03895416]
[1748523329292,8.25222764,172.02,172.01,0.03895416]
[1748523329692,8.25231494,172.02,172.01,0.03895416]
[1748523329887,8.25230051,172.02,172.01,0.03895416]
[1748523330092,5.8112,172.02,172.01,0.03895416]
[1748523330293,8.25230051,172.02,172.01,0.03895416]
[1748523331099,8.25232722,172.02,172.01,0.03895416]
[1748523331295,8.25231049,172.02,172.01,0.03895416]
[1748523332000,8.25218449,172.02,172.01,0.03895416]
[1748523332201,11.49617322,172.02,172.01,0.03895416]
[1748523333499,11.49655272,172.02,172.01,0.03895416]
[1748523334702,11.49719772,172.02,172.01,0.03895416]
[1748523335199,11.4971995,172.02,172.01,0.03895416]
[1748523335401,9.05518873,172.02,172.01,0.03895416]
[1748523335603,11.49709908,172.02,172.01,0.03895416]
[1748523336305,9.05518873,172.02,172.01,0.03895416]
[1748523336506,11.49737964,172.02,172.01,0.03895416]
[1748523336708,11.49738024,172.02,172.01,0.03895416]
[1748523336900,11.49762601,172.02,172.01,0.03895416]
[1748523337103,11.49786079,172.02,172.01,0.03895416]
[1748523338195,8.25387206,172.02,172.01,0.03895416]
[1748523338402,2.44267206,172.02,172.01,5.85045416]
[1748523338703,2.44294003,172.02,172.01,5.85045416]
[1748523338903,2.44294003,172.02,172.01,0.03895416]
[1748523339401,2.44300817,172.02,172.01,0.03895416]
[1748523339605,2.44298116,172.02,172.01,5.85025416]
[1748523340411,2.4430875,172.02,172.01,5.85025416]
[1748523341009,5.8106,172.04,172.01,5.85025416]
[1748523341202,2.44314696,172.03,172.01,5.85025416]
[1748523341402,2.44314696,172.02,172.01,5.85025416]
[1748523342009,0.03796501,172.05,172.03,5.8106]
[1748523342202,2.44266027,172.04,172.03,5.8106]
[1748523342699,2.44197179,172.04,172.03,5.8106]
[1748523343101,2.44197179,172.04,172.02,5.8111]
[1748523343102,2.44223196,172.04,172.02,5.8111]
[1748523343303,0.03796501,172.05,172.02,5.8111]
[1748523343498,2.44274045,172.04,172.02,5.8111]
[1748523343711,5.84816501,172.05,172.02,5.8111]
[1748523343903,2.44196275,172.04,172.02,5.8111]
[1748523344103,5.84816501,172.05,172.02,5.8111]
[1748523344309,2.44202825,172.04,172.02,5.8111]
[1748523344511,0.03796501,172.05,172.02,5.8111]
[1748523344704,0.03796501,172.05,172.03,5.8108]
[1748523345102,5.84816501,172.05,172.01,0.03895416]
[1748523345310,2.44150264,172.04,172.01,0.03895416]
[1748523345611,5.84816501,172.05,172.01,0.03895416]
[1748523345816,2.44104788,172.04,172.01,0.03895416]
[1748523346112,5.84816501,172.05,172.02,5.8111]
[1748523346311,2.4411632,172.04,172.02,5.8111]
[1748523346510,5.84816501,172.05,172.02,5.8111]
[1748523347901,2.44059959,172.04,172.02,5.8111]
[1748523348101,5.84816501,172.05,172.02,5.8111]
[1748523348306,2.44058206,172.04,172.02,5.8111]
[1748523348505,5.84816501,172.05,172.02,5.8111]
[1748523349908,0.03796501,172.05,172.03,5.8108]
[1748523350412,0.03796501,172.05,172.01,0.03895416]
[1748523350913,0.03796501,172.05,172.03,5.8107]
[1748523352214,5.84816501,172.05,172.03,5.8107]
[1748523355709,0.03796501,172.05,172.04,5.8105]
[1748523355907,2.47663984,172.05,172.04,5.8105]
[1748523356512,0.03796501,172.05,172.04,5.8105]
[1748523356709,2.47641587,172.05,172.04,5.8105]
[1748523357506,0.03796501,172.05,172.04,5.8105]
[1748523359217,0.03796501,172.05,172.03,5.8107]
[1748523360113,0.03796501,172.05,172.04,5.8105]
[1748523361317,0.03796501,172.05,172.03,5.8107]
[1748523364818,5.84816501,172.05,172.03,5.8107]
[1748523365907,0.03796501,172.05,172.04,5.8105]
[1748523366916,0.03796501,172.05,172.03,5.8107]
[1748523367317,0.03796501,172.05,172.04,5.8105]
[1748523367715,0.03796501,172.05,172.01,0.03895416]
[1748523370613,5.84816501,172.05,172.03,5.8106]
[1748523371122,0.03796501,172.05,172.03,5.8106]
[1748523372021,0.03796501,172.05,172.04,5.8105]
[1748523375219,0.03796501,172.05,172.03,5.8107]
[1748523375419,0.03796501,172.05,172.01,0.03895416]
[1748523375723,5.68556282,172.04,172.01,0.03895416]
[1748523375925,2.44128958,172.03,172.01,0.03895416]
[1748523376125,3.24398873,172.04,172.01,0.03895416]
[1748523376312,8.25279421,172.03,172.01,0.03895416]
[1748523376518,5.8108,172.03,172.01,0.03895416]
[1748523377221,11.49726337,172.02,172.01,0.03895416]
[1748523377615,5.68606337,172.02,171.93,5.814]
[1748523377816,3.24398873,171.98,171.9,38.14]
[1748523378019,2.44207464,172.01,171.9,38.14]
[1748523378020,3.24398873,171.96,171.9,38.14]
[1748523378724,0.04160717,171.95,171.91,0.04098315]
[1748523379029,0.04160717,171.95,171.91,3.28497188]
[1748523379226,0.04160717,171.95,171.94,5.8139]
[1748523385227,7.17e-06,171.95,171.94,5.8139]
[1748523389533,2.43895601,172.04,172.01,5.8112]
[1748523389732,2.43895601,172.03,172.01,5.8112]
[1748523389937,2.43888076,172.04,172.01,5.8112]
[1748523390233,2.43888076,172.03,172.01,5.8112]
[1748523390533,2.43897246,172.03,172.01,5.8112]
[1748523390733,2.43897246,172.03,172.0,5.85419739]
[1748523390938,8.24987246,172.03,172.0,5.85419739]
[1748523391325,5.8109,172.03,172.0,5.85419739]
[1748523391528,8.2497449,172.03,172.0,5.85419739]
[1748523392130,8.2497449,172.03,172.0,0.04239739]
[1748523392433,5.8112,172.02,172.0,0.04239739]
[1748523392830,8.24956045,172.03,172.0,5.85419739]
[1748523393039,5.811,172.03,172.0,5.85419739]
[1748523393236,8.24944614,172.03,172.0,5.85419739]
[1748523394545,5.811,172.03,172.0,5.85419739]
[1748523394747,8.24910391,172.03,172.0,5.85419739]
[1748523394945,5.8112,172.02,172.0,0.04239739]
[1748523395142,2.43810391,172.03,172.0,0.04239739]
[1748523395547,5.8115,172.01,172.0,0.04239739]
[1748523402854,2.43707644,172.02,171.89,542.2857]
[1748523403147,2.43707644,172.01,171.89,542.2857]
[1748523403453,38.14,172.05,171.89,542.2857]
[1748523403454,5.8126,171.98,171.89,542.2857]
[1748523403653,2.43617349,171.99,171.89,542.2857]
[1748523403950,0.03821857,171.96,171.92,3.28971339]
[1748523404952,0.03821857,171.96,171.95,5.8133]
[1748523409055,0.03821857,171.96,171.92,0.04425113]
[1748523409853,0.03821857,171.96,171.95,5.8136]
[1748523410049,0.03821857,171.96,171.92,0.04425113]
[1748523410447,5.85141857,171.96,171.92,0.04425113]
[1748523411351,0.03821857,171.96,171.92,0.04425113]
[1748523411752,0.03821857,171.96,171.92,5.85875113]
[1748523411952,5.8136,171.95,171.92,5.85875113]
[1748523412652,5.85151857,171.96,171.92,0.04425113]
[1748523412853,0.03821857,171.96,171.92,0.04425113]
[1748523413153,5.85151857,171.96,171.93,5.8142]
[1748523414661,0.03821857,171.96,171.94,5.8138]
[1748523415057,0.03821857,171.96,171.95,5.8136]
[1748523419455,0.03821857,171.96,171.94,5.8138]
[1748523420455,0.03821857,171.96,171.92,0.04425113]
[1748523421061,5.85161857,171.96,171.93,5.814]
[1748523421564,5.85161857,171.96,171.92,0.04425113]
[1748523421565,0.03821857,171.96,171.92,0.04425113]
[1748523421956,0.03821857,171.96,171.95,5.8136]
[1748523435066,39.6768,172.04,171.92,0.04425113]
[1748523435275,39.6768,172.04,171.93,5.07040048]
[1748523435575,5.8114,172.02,171.94,43.6463]
[1748523435777,5.8114,172.02,171.99,5.8122]
[1748523435978,5.811,172.03,171.94,43.6463]
[1748523436177,0.03736749,172.02,172.0,5.8117]
[1748523436374,0.03736749,172.02,171.99,0.04193036]
[1748523437079,5.8118,172.01,171.99,0.04193036]
[1748523438079,5.8118,172.01,171.99,5.85413036]
[1748523438280,5.84866749,172.02,171.99,5.85413036]
[1748523440669,0.03736749,172.02,171.99,0.04193036]
[1748523441281,5.8118,172.01,171.99,0.04193036]
[1748523442779,5.8118,172.01,171.99,5.85393036]
[1748523443084,5.84866749,172.02,171.99,5.85393036]
[1748523445981,5.84866749,172.02,172.0,5.8118]
[1748523446185,5.84866749,172.02,171.99,0.04193036]
[1748523447782,0.03736749,172.02,171.99,0.04193036]
[1748523448382,0.03736749,172.02,172.01,5.8115]
[1748523450282,0.03736749,172.02,172.0,5.8118]
[1748523450478,0.03736749,172.02,171.99,0.04193036]
[1748523450479,5.84866749,172.02,171.99,0.04193036]
[1748523450683,0.03736749,172.02,171.99,0.04193036]
[1748523451384,3.28149781,172.02,171.99,0.04193036]
[1748523451775,5.8119,172.0,171.99,0.04193036]
[1748523455786,0.03736749,172.02,171.99,5.85403036]
[1748523456288,5.84866749,172.02,171.99,5.85403036]
[1748523456890,5.8117,172.01,171.99,5.85403036]
[1748523457888,5.8117,172.01,171.99,0.04193036]
[1748523459698,5.84866749,172.02,171.99,5.85403036]
[1748523460899,5.84866749,172.02,171.99,0.04193036]
[1748523460900,0.03736749,172.02,171.99,0.04193036]
[1748523461300,0.03736749,172.02,172.01,5.8115]
[1748523466509,0.03736749,172.02,172.0,5.8118]
[1748523466712,0.03736749,172.02,171.99,0.04193036]
[1748523467005,0.03736749,172.02,172.01,5.8115]
[1748523468208,0.03736749,172.02,172.0,5.8118]
[1748523468612,0.03736749,172.02,171.99,0.04193036]
[1748523469305,0.03736749,172.02,172.01,5.8115]
[1748523471713,0.03736749,172.02,171.99,0.04193036]
[1748523472514,0.03736749,172.02,172.0,5.8116]
[1748523473207,0.03736749,172.02,172.01,5.8115]
[1748523476106,0.03736749,172.02,172.0,5.8118]
[1748523476310,5.8117,172.01,171.99,0.04193036]
[1748523476504,0.03736749,172.02,171.99,0.04193036]
[1748523476712,0.03736749,172.02,172.01,5.8115]
[1748523488320,0.03736749,172.02,172.0,5.8117]
[1748523488515,0.03736749,172.02,171.99,0.04193036]
[1748523488909,0.03736749,172.02,172.01,5.8115]
[1748523492719,0.03736749,172.02,172.0,5.8117]
[1748523494620,0.03736749,172.02,171.99,0.04193036]
[1748523495228,5.8117,172.01,171.99,5.85403036]
[1748523495617,0.03736749,172.02,171.99,0.04193036]
[1748523496917,5.84866749,172.02,172.0,5.8118]
[1748523497119,0.03736749,172.02,172.0,5.8118]
[1748523497322,0.03736749,172.02,171.99,0.04193036]
[1748523497523,0.03736749,172.02,172.01,5.8115]
[1748523497929,0.03736749,172.02,171.99,0.04193036]
[1748523498132,0.03736749,172.02,172.0,5.8118]
[1748523499230,0.03736749,172.02,172.01,5.8115]
[1748523499433,2.47927377,172.02,172.01,5.8115]
[1748523500339,2.47927377,172.02,172.0,5.8117]
[1748523500528,2.44190628,172.01,172.0,5.8117]
[1748523501532,2.44220197,172.01,172.0,5.8117]
[1748523501732,2.44215538,172.01,172.0,5.8117]
[1748523501934,2.44215538,172.01,171.99,5.85403036]
[1748523502237,5.84856749,172.02,171.99,5.85403036]
[1748523502440,2.44239695,172.01,172.0,5.8119]
[1748523504331,2.44239695,172.01,171.99,5.85403036]
[1748523504538,2.44303499,172.0,171.99,5.85403036]
[1748523504929,2.44337424,172.0,171.99,5.85413036]
[1748523505133,2.44337424,172.0,171.99,0.04193036]
[1748523505336,5.8117,172.01,171.99,0.04193036]
[1748523505534,2.44328991,172.0,171.99,0.04193036]
[1748523506633,2.44328991,172.0,171.99,5.85413036]
[1748523506838,2.44387608,172.0,171.99,5.85413036]
[1748523507439,2.44380442,172.0,171.99,5.85413036]
[1748523508634,2.44379313,172.0,171.99,5.85413036]
[1748523508938,2.44379313,172.0,171.84,522.60573204]
[1748523509234,3.24329832,171.96,171.87,39.76329832]
[1748523509448,5.8151,171.91,171.88,5.8157]
[1748523510141,0.04339179,171.91,171.89,5.8155]
[1748523511740,0.04339179,171.91,171.9,5.8152]
[1748523515139,0.04339179,171.91,171.88,0.04116926]
[1748523515740,5.8156,171.89,171.88,0.04116926]
[1748523520638,41.59435891,171.9,171.73,11.6416]
[1748523520844,6.1174,171.88,171.74,36.54]
[1748523521248,5.8174,171.84,171.81,5.818]
[1748523521649,0.04061149,171.84,171.81,0.03758661]
[1748523522548,0.04061149,171.84,171.82,5.8179]
[1748523523252,0.04061149,171.84,171.83,5.8176]
[1748523524552,0.04061149,171.84,171.82,5.8178]
[1748523524952,0.04061149,171.84,171.81,0.03758661]
[1748523525248,0.04061149,171.84,171.82,5.8179]
[1748523526464,0.04061149,171.84,171.81,0.03758661]
[1748523527059,0.04061149,171.84,171.83,5.8176]
[1748523527861,0.04061149,171.84,171.82,5.8179]
[1748523529559,0.04061149,171.84,171.83,5.8176]
[1748523530958,0.04061149,171.84,171.82,5.8178]
[1748523534669,0.04061149,171.84,171.83,5.8176]
[1748523535871,0.04061149,171.84,171.82,5.8178]
[1748523536571,0.04061149,171.84,171.81,5.85568661]
[1748523537166,5.8177,171.83,171.81,0.03758661]
[1748523537880,0.04061149,171.84,171.81,0.03758661]
[1748523538470,5.8176,171.83,171.81,0.03758661]
[1748523539766,5.8176,171.83,171.81,5.85578661]
[1748523540274,5.85801149,171.84,171.81,5.85578661]
[1748523541573,5.8176,171.83,171.81,5.85578661]
[1748523543572,5.85801149,171.84,171.81,5.85578661]
[1748523543773,5.85801149,171.84,171.81,0.03758661]
[1748523543774,36.2,171.83,171.81,0.03758661]
[1748523545078,5.8179,171.82,171.81,0.03758661]
[1748523555081,42.0178,171.83,171.81,0.03758661]
[1748523555586,36.2,171.83,171.81,0.03758661]
[1748523557079,36.2,171.83,171.82,5.818]
[1748523557479,36.2,171.83,171.81,0.03758661]
[1748523557681,36.2,171.83,171.81,5.85578661]
[1748523557880,36.2,171.83,171.81,0.03758661]
[1748523558280,36.2,171.83,171.82,5.818]
[1748523559288,36.2,171.83,171.81,5.85578661]
[1748523559876,36.2,171.83,171.81,0.03758661]
[1748523560588,36.2,171.83,171.81,5.85558661]
[1748523560889,42.0177,171.83,171.81,5.85558661]
[1748523561089,36.2,171.83,171.81,5.85558661]
[1748523562881,42.0177,171.83,171.81,5.85558661]
[1748523563186,36.2,171.83,171.81,5.85558661]
[1748523564891,42.0177,171.83,171.81,5.85558661]
[1748523567489,36.2,171.83,171.82,5.818]
[1748523567996,0.04061149,171.84,171.83,5.8177]
[1748523570500,0.04061149,171.84,171.82,5.8179]
[1748523571302,5.85791149,171.84,171.82,5.8179]
[1748523571804,0.04061149,171.84,171.82,5.8179]
[1748523573700,5.85801149,171.84,171.82,5.8179]
[1748523574403,0.04061149,171.84,171.82,5.8179]
[1748523575993,5.85821149,171.84,171.81,5.85578661]
[1748523576800,5.85821149,171.84,171.82,5.818]
[1748523576997,0.04061149,171.84,171.81,0.03758661]
[1748523577504,0.04061149,171.84,171.83,5.8177]
[1748523579204,0.04061149,171.84,171.82,5.818]
[1748523582310,0.04061149,171.84,171.83,5.8177]
[1748523591825,0.04061149,171.84,171.81,0.03758661]
[1748523592219,0.04061149,171.84,171.83,5.8177]
[1748523593723,0.04061149,171.84,171.81,0.03758661]
[1748523595921,5.85821149,171.84,171.81,5.85558661]
[1748523596227,5.85821149,171.84,171.81,0.03758661]
[1748523596925,5.85821149,171.84,171.82,5.818]
[1748523597531,0.04061149,171.84,171.83,5.8177]
[1748523598024,0.04061149,171.84,171.82,5.818]
[1748523598227,0.04061149,171.84,171.81,0.03758661]
[1748523598827,0.04061149,171.84,171.82,5.818]
[1748523599323,0.04061149,171.84,171.81,0.03758661]
[1748523599522,0.04061149,171.84,171.83,5.8177]
[1748523602733,35.86,171.87,171.86,5.8167]
[1748523602929,2.0493,171.91,171.81,4.0789]
[1748523602930,37.5493,171.91,171.81,4.0789]
[1748523603437,5.8154,171.9,171.81,4.0789]
[1748523603633,37.5493,171.91,171.81,4.0789]
[1748523603834,0.03805681,171.88,171.87,5.8161]
[1748523608336,0.03805681,171.88,171.86,5.8165]
[1748523608536,0.03805681,171.88,171.84,0.04372171]
[1748523608940,0.03805681,171.88,171.87,5.8163]
[1748523609134,0.03805681,171.88,171.84,0.04372171]
[1748523610240,5.8169,171.86,171.84,0.04372171]
[1748523610629,0.03805681,171.88,171.84,0.04372171]
[1748523610839,5.817,171.85,171.84,0.04372171]
[1748523612539,0.03805681,171.88,171.84,0.04372171]
[1748523614041,5.817,171.85,171.84,0.04372171]
[1748523614849,5.8166,171.87,171.84,5.86102171]
[1748523615440,5.8167,171.86,171.84,5.86102171]
[1748523615738,5.8167,171.86,171.84,0.04372171]
[1748523616646,5.8165,171.87,171.84,0.04372171]
[1748523617036,0.03805681,171.88,171.84,0.04372171]
[1748523617037,5.817,171.85,171.84,0.04372171]
[1748523617440,35.5,171.86,171.84,0.04372171]
[1748523617732,41.3168,171.86,171.84,0.04372171]
[1748523619440,0.03805681,171.88,171.84,0.04372171]
[1748523619939,5.85425681,171.88,171.84,5.86082171]
[1748523620142,5.85425681,171.88,171.84,0.04372171]
[1748523620437,5.85425681,171.88,171.85,5.817]
[1748523620937,5.8164,171.87,171.84,5.86092171]
[1748523624350,0.03805681,171.88,171.84,0.04372171]
[1748523625054,0.03805681,171.88,171.84,5.86102171]
[1748523625350,0.03805681,171.88,171.84,0.04372171]
[1748523626348,5.85405681,171.88,171.85,5.8167]
[1748523626945,0.03805681,171.88,171.86,5.8165]
[1748523627239,0.03805681,171.88,171.84,0.04372171]
[1748523627447,0.03805681,171.88,171.87,5.8163]
[1748523629841,37.1213,171.94,171.85,3.8027]
[1748523629842,35.18,171.94,171.85,3.8027]
[1748523630050,35.18,171.94,171.86,2.0587]
[1748523630544,35.18,171.94,171.92,5.8146]
[1748523631048,40.9941,171.94,171.91,5.85711477]
[1748523631952,35.18,171.94,171.92,5.8146]
[1748523632952,40.994,171.94,171.92,5.8146]
[1748523633650,40.994,171.94,171.91,5.85711477]
[1748523633948,40.994,171.94,171.91,0.04221477]
[1748523633949,35.18,171.94,171.91,0.04221477]
[1748523634350,35.18,171.94,171.93,5.8143]
[1748523634749,5.85193638,171.95,171.93,5.8143]
[1748523634945,0.03823638,171.95,171.93,5.8143]
[1748523635651,0.03823638,171.95,171.94,5.814]
[1748523636053,0.03823638,171.95,171.91,0.04221477]
[1748523636054,0.03823638,171.95,171.93,5.8142]
[1748523636647,0.03823638,171.95,171.94,5.814]
[1748523638956,0.03823638,171.95,171.92,5.8144]
[1748523639258,0.03823638,171.95,171.91,0.04221477]
[1748523640259,0.03823638,171.95,171.93,5.8141]
[1748523640664,0.03823638,171.95,171.94,5.814]
[1748523641858,507.71435891,172.03,171.92,5.7877]
[1748523641859,35.16,172.02,171.92,5.7877]
[1748523642050,5.812,172.0,171.92,5.7877]
[1748523642461,5.812,172.0,171.96,5.8129]
[1748523642853,0.04230679,172.0,171.96,0.0383521]
[1748523643452,5.8127,171.98,171.96,0.0383521]
[1748523645167,5.8129,171.97,171.96,0.0383521]
[1748523646067,5.8126,171.99,171.96,0.0383521]
[1748523646272,35.20230679,172.0,171.96,0.0383521]
[1748523646565,5.8128,171.98,171.96,0.0383521]
[1748523647155,5.8123,171.99,171.96,0.0383521]
[1748523648067,5.8123,171.99,171.96,5.8514521]
[1748523649678,41.01430679,172.0,171.97,5.8129]
[1748523650267,5.8124,171.99,171.96,5.8514521]
[1748523650464,35.20230679,172.0,171.96,0.0383521]
[1748523650968,41.01430679,172.0,171.97,5.8127]
[1748523652671,41.01430679,172.0,171.98,5.8126]
[1748523653070,35.20230679,172.0,171.98,5.8126]
[1748523653268,35.20230679,172.0,171.97,5.8128]
[1748523653471,41.01440679,172.0,171.97,5.8128]
[1748523654065,35.20230679,172.0,171.96,5.8514521]
[1748523654564,35.20230679,172.0,171.96,0.0383521]
[1748523654770,5.8128,171.98,171.96,0.0383521]
[1748523655360,5.8128,171.98,171.96,5.8514521]
[1748523655966,5.8124,171.99,171.96,5.8514521]
[1748523656875,41.01440679,172.0,171.97,5.8128]
[1748523658177,5.8125,171.99,171.96,5.8514521]
[1748523658381,35.20230679,172.0,171.96,5.8514521]
[1748523659476,5.8125,171.99,171.96,5.8514521]
[1748523659679,35.20230679,172.0,171.97,5.8129]
[1748523659878,5.8123,171.99,171.97,5.8129]
[1748523660079,35.20230679,172.0,171.96,0.0383521]
[1748523660480,41.01450679,172.0,171.97,5.8127]
[1748523660683,35.20230679,172.0,171.97,5.8127]
[1748523660883,35.20230679,172.0,171.96,0.0383521]
[1748523661784,41.01440679,172.0,171.96,0.0383521]
[1748523662877,35.20230679,172.0,171.99,5.8123]
[1748523663583,0.04230679,172.0,171.99,5.8123]
[1748523664480,0.04230679,172.0,171.98,5.8125]
[1748523664878,0.04230679,172.0,171.96,0.0383521]
[1748523665584,0.04230679,172.0,171.99,5.8123]
[1748523668590,0.04230679,172.0,171.98,5.8125]
[1748523669889,0.04230679,172.0,171.99,5.8123]
[1748523670083,0.04230679,172.0,171.96,0.0383521]
[1748523670583,0.04230679,172.0,171.98,5.8123]
[1748523671181,0.04230679,172.0,171.97,5.8128]
[1748523671786,5.8125,171.99,171.97,5.8128]
[1748523671985,0.04230679,172.0,171.97,5.8128]
[1748523672584,5.85440679,172.0,171.97,5.8128]
[1748523673186,5.85440679,172.0,171.96,0.0383521]
[1748523673187,5.8128,171.98,171.96,0.0383521]
[1748523674089,5.8129,171.97,171.96,0.0383521]
[1748523674691,5.8128,171.98,171.96,0.0383521]
[1748523674885,0.04230679,172.0,171.96,5.8514521]
[1748523675084,5.8125,171.99,171.96,0.0383521]